Cogmind - Beta 15 @@@ ROGUE MODE // 2025.05.09 @ 02:40:55 Player: ktur Result: Core destroyed Performance ------------- Evolutions (7) 3500 Regions Visited (19) 3800 Robots Destroyed (238) 1190 Value Destroyed (10246) 10246 Prototype IDs (42) 840 Alien Tech Used (2) 400 Bonus (3491) 3491 TOTAL SCORE: 23467 Bonus ------- High Alert Combat Kills 898 Follower Combat Kills 1425 Network Hubs Disabled 200 Registered with UFD 300 Met Optimus in HQ 500 Met Zhirov 300 Friendly Fire -132 Cogmind --------- Core Integrity 0/1300 Matter 80/300 Energy 100/100 System Corruption 18% Temperature Cool (0) Movement Core (50) Location -3/Research Parts ------- > --- POWER (2) -------- (None) > --- PROPULSION (5) --- (None) > --- UTILITY (10) ----- Authchip [Weapon] > --- WEAPON (4) ------- (None) > --- INVENTORY (5) ---- High-capacity Storage Unit Long-range Terrain Scanner Improved Transmission Jammer Experimental EM Shield Scatter Rocket Array Peak State ------------ > --- POWER ------------ Antimatter Reactor Light Antimatter Reactor > --- PROPULSION ------- Enhanced Biometal Leg Enhanced Biometal Leg Enhanced Biometal Leg Enhanced Biometal Leg Enhanced Biometal Leg > --- UTILITY ---------- High-capacity Storage Unit Deep Structural Scanner Enhanced Optical Array Experimental Targeting Computer Improved Transmission Jammer Improved Cloaking Device Improved Utility Shielding Centrium Medium Armor Plating Experimental EM Shield Advanced Hacking Suite > --- WEAPON ----------- Heavy Machine Gun Heavy Machine Gun Advanced KE Penetrator Great Maul > --- INVENTORY -------- Heavy Antimatter Reactor Quantum Reactor Experimental Heat Sink Energy Well Matter Compressor Advanced Recoil Stabilizer Improved Weapon Cycler Improved Utility Shielding Layered Medium Armor Plating Experimental Thermal Shield Hacking Suite Authchip [Processor] Authchip [Weapon] Authchip [Weapon] Component Analysis Suite Transdimensional Reconstructor Heavy Machine Gun Scatter Rocket Array CPS Tube Multitool [Rating: 148] Favorites ----------- Power Quantum Reactor Engine Improved Deuterium Engine Power Core Neutrino Core Reactor Quantum Reactor Propulsion Enhanced Biometal Leg Treads Light Treads Leg Enhanced Biometal Leg Flight Unit Cooled Nuclear Pulse Thruster Utility High-capacity Storage Unit Device Deep Structural Scanner Storage High-capacity Storage Unit Processor Enhanced Optical Array Hackware Advanced Hacking Suite Protection Centrium Medium Armor Plating Weapon Antimatter Cannon Energy Gun EM Pulse Gun Energy Cannon EMDS Ballistic Gun Light Assault Rifle Ballistic Cannon Antimatter Cannon Launcher Scatter Rocket Array Special Weapon Junk Cannon Impact Weapon Great Maul Piercing Weapon Spear Build | -11 -10 -10 -8 -6 -6 -6 -6 -6 -5 -5 -5 -5 -5 -5 -4 -4 -4 -4 -3 ------- Run | Yrd Mat Sub Scr Fac Ext Cet Arc Hub Fac Was Fac Upp Upp Zhi Pro Fac Upp Upp Res Slots Evolved 14 | . . . . 8 . . . . 2 . . . . . . 2 . . 2 Power 1 | . . . . . . . . . 1 . . . . . . . . . . Propulsion 3 | . . . . 2 . . . . . . . . . . . 1 . . . Utility 8 | . . . . 5 . . . . 1 . . . . . . 1 . . 1 Weapon 2 | . . . . 1 . . . . . . . . . . . . . . 1 Parts Attached 129 | 8 . 1 9 28 6 4 6 17 6 1 9 3 . 5 . 8 1 . 17 Power 14 | 1 . . 3 1 1 . . 1 2 . 1 1 . 1 . . . . 2 Engine 5 | 1 . . 2 1 1 . . . . . . . . . . . . . . Core 4 | . . . 1 . . . . . 1 . 1 1 . . . . . . . Reactor 5 | . . . . . . . . 1 1 . . . . 1 . . . . 2 Propulsion 22 | 2 . . . 7 2 3 . 4 . . . . . 1 . 1 1 . 1 Treads 15 | 2 . . . 7 2 3 . . . . . . . . . . . . 1 Leg 6 | . . . . . . . . 4 . . . . . . . 1 1 . . Wheel . | . . . . . . . . . . . . . . . . . . . . Hover . | . . . . . . . . . . . . . . . . . . . . Flight 1 | . . . . . . . . . . . . . . 1 . . . . . Utility 63 | 2 . . 1 14 1 1 5 7 4 1 8 2 . 3 . 6 . . 8 Device 27 | 1 . . . 3 1 . 3 7 . . 4 1 . 1 . 3 . . 3 Storage 5 | 1 . . 1 1 . . . . . 1 1 . . . . . . . . Processor 6 | . . . . 3 . . . . 1 . 1 . . . . 1 . . . Hackware 9 | . . . . 1 . . . . 2 . 1 . . . . 1 . . 4 Protection 16 | . . . . 6 . 1 2 . 1 . 1 1 . 2 . 1 . . 1 Artifact . | . . . . . . . . . . . . . . . . . . . . Weapon 30 | 3 . 1 5 6 2 . 1 5 . . . . . . . 1 . . 6 Energy Gun 1 | 1 . . . . . . . . . . . . . . . . . . . Energy Cannon 1 | . . . . . . . . 1 . . . . . . . . . . . Ballistic Gun 12 | 2 . . 3 . 1 . 1 1 . . . . . . . . . . 4 Ballistic Cannon 5 | . . . . 3 1 . . . . . . . . . . 1 . . . Launcher 2 | . . . . 2 . . . . . . . . . . . . . . . Special Weapon 6 | . . 1 1 1 . . . 2 . . . . . . . . . . 1 Impact Weapon 1 | . . . . . . . . 1 . . . . . . . . . . . Slashing Weapon . | . . . . . . . . . . . . . . . . . . . . Piercing Weapon 2 | . . . 1 . . . . . . . . . . . . . . . 1 Special Melee Weapon . | . . . . . . . . . . . . . . . . . . . . Unidentified Prototypes 22 | . . . 1 3 1 2 1 6 . . . 1 . 5 . . . . 2 Corrupted Parts 4 | . . . . . . 2 1 1 . . . . . . . . . . . System Corruption 26 | . . . . . . 13 10 3 . . . . . . . . . . . Parts Lost 36 | . . . . 6 2 . . 1 . . 3 1 1 . . 1 . . 21 Power 2 | . . . . 1 . . . . . . 1 . . . . . . . . Propulsion 9 | . . . . 2 1 . . . . . . . . . . . . . 6 Utility 19 | . . . . 3 1 . . 1 . . 2 1 1 . . . . . 10 Weapon 6 | . . . . . . . . . . . . . . . . 1 . . 5 Highest Loss Streak 7 | . . . . 2 1 . . 1 . . 1 1 1 . . 1 . . 7 To Critical Strikes 1 | . . . . . . . . . . . . . . . . . . . 1 Average Backups 16 | 2 5 6 14 16 18 18 17 18 19 20 19 19 18 17 19 18 19 19 14 Power 1 | . 1 1 . . 1 1 1 1 . 1 . 1 1 1 2 1 1 1 1 Propulsion 2 | 1 2 1 4 2 2 . . . 2 2 2 2 2 2 2 1 1 1 . Utility 7 | . . . 3 5 5 6 6 9 12 12 11 11 11 10 10 10 13 13 10 Weapon 2 | 1 2 2 1 3 4 5 6 4 2 3 2 3 2 1 2 2 1 1 1 Tool/Special . | . . . . . . . . . . . . . . . . . . . . Unused Backups 41 | . . 1 16 6 2 4 1 2 2 . 1 1 . . . 1 . . 4 Power 8 | . . . 2 . 1 2 1 1 . . . 1 . . . . . . . Propulsion 9 | . . 1 8 . . . . . . . . . . . . . . . . Utility 15 | . . . 3 3 . 1 . . 2 . 1 . . . . 1 . . 4 Weapon 7 | . . . 3 2 1 . . 1 . . . . . . . . . . . Tool/Special 2 | . . . . 1 . 1 . . . . . . . . . . . . . Average Slot Usage (%) 90 | . 100 100 86 88 97 92 81 90 94 94 95 88 82 81 88 95 94 97 73 Engine 4 | . 14 14 10 3 6 6 6 3 . . . . . . . . . . . Core 1 | . . . . 2 . . . . . 5 4 1 5 2 . . . . . Reactor 3 | . . . . . . . . 2 10 5 5 9 5 7 5 8 10 10 6 Treads 14 | . 28 28 28 25 26 18 13 7 . . . . . . . . . . . Leg 9 | . . . . . . . . 10 23 23 23 23 23 23 23 26 26 26 15 Device 12 | . 14 14 11 9 9 13 15 18 11 11 15 14 11 10 11 14 10 12 13 Storage 9 | . 14 14 11 12 13 13 10 6 5 10 5 5 5 5 5 5 5 5 2 Processor 6 | . . . . 6 13 13 13 13 11 11 8 5 5 5 5 9 10 10 7 Hackware 2 | . . . . . . . . . 4 5 5 5 5 5 5 5 5 5 6 Protection 6 | . . . . 11 9 6 2 6 10 5 9 7 5 10 11 9 10 10 5 Ballistic Gun 4 | . 28 25 16 . . . 4 5 . . . . . . . . . . 7 Ballistic Cannon 4 | . . . . . 12 20 14 8 . . 3 2 5 . 11 9 9 9 . Special Weapon 1 | . . 3 1 5 2 . . . . . . . . . . . . . . Impact Weapon 1 | . . . . . . . . 4 5 2 4 5 5 5 5 4 5 5 2 Piercing Weapon 2 | . . . 4 5 2 . . . . . . . . . . . . . . Peak Build Rating 148 | 7 7 8 26 65 69 101 107 119 134 131 135 131 119 124 118 145 139 136 148 Average Rating 76 | 4 7 7 13 58 65 88 96 104 131 129 123 121 108 108 118 134 130 133 105 On Entrance 87 | . 7 7 8 26 62 68 101 101 115 130 130 131 114 108 118 118 139 131 136 Naked Turns . | . . . . . . . . . . . . . . . . . . . . Heaviest Build 126 | 13 13 13 62 91 87 91 97 92 118 111 120 126 98 113 103 116 116 116 123 Greatest Support 160 | 40 40 40 40 84 82 160 160 160 120 120 120 120 120 120 120 150 150 150 150 Greatest Overweight (x) 1 | . . . 1 1 1 1 . 1 . . . 1 . 1 . . . . 1 Average Overweight (x) . | . . . . . . . . . . . . . . . . . . . . Largest Inventory Capacity 20 | 8 8 8 20 20 20 20 20 20 20 20 20 20 20 20 20 20 20 20 20 Average Capacity 18 | 7 8 8 16 20 20 20 20 20 20 20 20 20 20 20 20 20 20 20 15 Most Carried 20 | 5 5 8 20 20 20 20 20 20 20 20 20 20 20 20 20 20 20 20 20 Average Carried 17 | 3 5 7 15 17 19 19 18 19 19 20 19 19 19 16 20 19 19 19 15 Final Capacity 20 | 8 8 8 20 20 20 20 20 20 20 20 20 20 20 20 20 20 20 20 5 Final Carried 20 | 5 5 8 20 20 20 20 20 20 20 20 20 20 20 20 20 20 20 20 5 Class Distribution -------------------- 46% | Mutant 35% | Scavenger-Mutant 9% | Commander-Tank 4% | Scavenger-Tank Dominant Class ---------------- Mutant | -10/Materials Mutant | -10/Subcaves Mutant | -8/Scraptown Mutant | -6/Factory Mutant | -6/Extension Commander-Tank | -6/Cetus Commander-Tank | -6/Archives Scavenger-Mutant | -6/Hub_04(d) Scavenger-Mutant | -5/Factory Scavenger-Tank | -5/Waste Scavenger-Mutant | -5/Factory Scavenger-Mutant | -5/Upper Caves Scavenger-Mutant | -5/Upper Caves Scavenger-Mutant | -5/Zhirov Scavenger-Mutant | -4/Proximity Caves Scavenger-Mutant | -4/Factory Scavenger-Mutant | -4/Upper Caves Scavenger-Mutant | -4/Upper Caves Scavenger-Tank | -3/Research Resources | -11 -10 -10 -8 -6 -6 -6 -6 -6 -5 -5 -5 -5 -5 -5 -4 -4 -4 -4 -3 ----------- Run | Yrd Mat Sub Scr Fac Ext Cet Arc Hub Fac Was Fac Upp Upp Zhi Pro Fac Upp Upp Res Matter Collected 8592 | 275 . 20 160 823 863 117 353 491 350 362 1742 331 240 . 224 886 412 179 764 Remotely . | . . . . . . . . . . . . . . . . . . . . Salvage Created 10909 | 89 . . . 1423 746 . 468 717 915 416 2418 179 247 . 24 1345 400 187 1335 Parts 437 | 8 . . . 41 36 . 37 30 28 . 78 9 4 . . 50 12 12 92 Haulers Intercepted 3 | . . . . . . . . . . . 2 . . . . 1 . . . Recyclers Shooed 8 | . . . . . 1 . . . . . 2 . . . . 2 . . 3 Parts Field Recycled . | . . . . . . . . . . . . . . . . . . . . Retrieved Matter . | . . . . . . . . . . . . . . . . . . . . Parts Self-Destructed 25 | . . 5 . . . . . . . . . 3 2 . . . 8 7 . Prevented 5 | . . . . . . . . . . . . 3 1 . 1 . . . . Kills | -11 -10 -10 -8 -6 -6 -6 -6 -6 -5 -5 -5 -5 -5 -5 -4 -4 -4 -4 -3 ------- Run | Yrd Mat Sub Scr Fac Ext Cet Arc Hub Fac Was Fac Upp Upp Zhi Pro Fac Upp Upp Res Combat Hostiles Destroyed 154 | . . . . 25 14 . 1 4 12 2 26 7 3 . . 15 12 8 25 Melee 6 | . . . . 6 . . . . . . . . . . . . . . . Guns 13 | . . . . . . . . 3 . . . . . . . . . . 10 Cannons 76 | . . . . 11 14 . 1 1 8 . 15 4 1 . . 14 3 3 1 AOE 39 | . . . . 1 . . . . . 2 5 3 2 . . . 9 5 12 Classes Destroyed 17 | 3 . . . 5 4 . . 1 1 1 1 . . . 1 . . . . Worker 18 | 1 . . . 2 . . . . . . 9 . . . . . . . 6 Builder 13 | . . . . 1 1 . . . . . 3 . . . . 2 . . 6 Tunneler 5 | 1 . . . . . . . . 1 . 3 . . . . . . . . Hauler 3 | . . . . . . . . . . . 2 . . . . 1 . . . Recycler 22 | 1 . . . 2 3 . . 3 2 . 4 . . . . 5 . . 2 Minesweeper 1 | . . . . . . . . . . . . . . . 1 . . . . Operator 14 | . . . . . 1 . 9 . . . 3 . . . . . . . 1 Watcher 5 | . . . . . 1 . . . 1 . 2 . . . . . . . 1 Swarmer 27 | . . . . . . . . . 3 . . 2 1 . . . 4 5 12 Grunt 43 | . . . . 15 4 . . 1 5 . 9 . 1 . . . 5 3 . Brawler 5 | . . . . 1 . . . . . . . . . . . . 1 . 3 Duelist 2 | . . . . . . . . . . . 1 . . . . . . . 1 Sentry 24 | . . . . 4 6 . 1 . 1 . 5 . 1 . . 4 2 . . Hunter 14 | . . . . . 1 . . 1 3 . 3 2 . . . 2 . . 2 Programmer 32 | . . . . 5 . . . . . . 8 3 . . . 9 . . 7 Behemoth 2 | . . . . . 2 . . . . . . . . . . . . . . Compactor 2 | . . . . . . . . . . 2 . . . . . . . . . Lightning 2 | . . . . . . . . 2 . . . . . . . . . . . Packrat 1 | . . . . . . . . . . . . . . . . . 1 . . Thug 3 | . . . . . 1 . 2 . . . . . . . . . . . . Butcher 1 | . . . . . . . . 1 . . . . . . . . . . . Best Kill Streak 17 | 2 . . . 4 3 . 4 4 3 2 7 3 3 . 1 4 5 8 17 Combat Bots Only 8 | . . . . 4 3 . 1 2 3 2 6 3 3 . . 4 5 8 8 Max Kills in Single Turn 9 | 1 . . . 1 2 . 2 2 2 1 5 3 2 . 1 2 4 4 9 Gunslinging 1 | . . . . . . . . 1 . . . . . . . . . . 1 Exploded 6 | . . . . 1 . . . . . 1 3 3 2 . . . 4 4 6 Melee 1 | . . . . 1 . . . . . . . . . . . . . . . Uniques/NPCs Destroyed . | . . . . . . . . . . . . . . . . . . . . Combat | -11 -10 -10 -8 -6 -6 -6 -6 -6 -5 -5 -5 -5 -5 -5 -4 -4 -4 -4 -3 -------- Run | Yrd Mat Sub Scr Fac Ext Cet Arc Hub Fac Was Fac Upp Upp Zhi Pro Fac Upp Upp Res Hostile Shots Fired 1089 | . . . . 303 137 14 . 33 20 . 143 25 8 . . 85 30 22 269 Missed 334 | . . . . 88 44 4 . 7 4 . 32 5 2 . . 27 9 9 103 Hits 755 | . . . . 215 93 10 . 26 16 . 111 20 6 . . 58 21 13 166 Melee 2 | . . . . . . . . 1 . . . . . . . . . . 1 Projectile 753 | . . . . 215 93 10 . 25 16 . 111 20 6 . . 58 21 13 165 Critical Strikes 42 | . . . . 10 2 . . 4 2 . 4 3 . . . 4 1 . 12 Actively Blocked 4 | . . . . . . . . . . . 2 1 . . . . . . 1 Part Disruptions 1 | . . . . . . . . . . . . . . . . 1 . . . Damage Taken 11500 | . . . . 2954 637 270 . 548 257 . 1133 208 119 . . 1157 604 227 3386 Core 1698 | . . . . 194 49 . . 15 12 . 119 2 . . . 43 25 . 1239 Absorbed by Shields 1388 | . . . . 147 270 96 . 91 . . 439 53 45 . . . . . 247 Reduced by Siege Mode 40 | . . . . . . . . 40 . . . . . . . . . . . Redirected to Shielding 464 | . . . . 63 . . . . 28 . 150 29 . . . 41 25 . 128 Ignored by Resistances 1226 | . . . . . . . . 88 45 . 803 145 . . . 79 . 14 52 Regen/Repaired (Parts) 43 | . . . . . . . . . . . 43 . . . . . . . . Core Remaining (%) 89 | 100 . . 100 . . . . 69 . . . . . . 86 . . 94 . Volleys Fired 435 | 4 . 2 . 70 41 . 43 20 30 5 91 10 7 . 2 44 16 9 41 Largest 3 | 2 . 1 . 2 3 . 3 3 1 1 2 2 1 . 2 3 2 2 3 Hottest 115 | 40 . 100 . 66 99 . 99 99 70 50 70 83 50 . 66 110 77 77 115 Shots Fired 672 | 8 . 2 . 71 114 . 46 41 30 5 103 11 7 . 4 74 30 16 110 Gun 178 | 8 . . . . . . 42 28 . . . . . . . . . . 100 Cannon 417 | . . . . 19 111 . 4 10 30 . 102 10 6 . 4 74 27 14 6 Launcher 17 | . . . . . . . . . . 5 1 1 1 . . . 3 2 4 Special 60 | . . 2 . 52 3 . . 3 . . . . . . . . . . . Kinetic 508 | 8 . . . 19 111 . 46 38 . . 52 6 6 . 4 71 27 14 106 Thermal 2 | . . 2 . . . . . . . . . . . . . . . . . Explosive 17 | . . . . . . . . . . 5 1 1 1 . . . 3 2 4 Electromagnetic 87 | . . . . . . . . . 30 . 50 4 . . . 3 . . . Impact 55 | . . . . 52 3 . . . . . . . . . . . . . . Robot Hit Streak 20 | 6 . . . 11 20 . 7 8 7 3 13 6 2 . 3 16 8 11 14 Robot Miss Streak 9 | . . . . 2 4 . 4 3 3 6 4 4 6 . 1 3 9 1 5 Penetration Max 1 | . . . . . . . 1 1 1 . 1 . . . . . . . 1 Secondary Targets 5 | . . . . . . . . 2 . . . . . . . . . . 3 Max Gunslinging Chain 1 | . . . . . . . . 1 . . . . . . . . . . 1 Shots Hit Robots 505 | 6 . . . 84 73 . 27 31 21 5 67 6 7 . 2 55 24 13 84 Core Hits 382 | 4 . . . 27 37 . 19 18 11 9 47 16 10 . . 22 48 14 100 Critical Kills 15 | . . . . . . . 4 6 . . 1 . 1 . . . . . 3 Critical Parts Destroyed 22 | . . . . 7 . . 1 2 1 . 3 . . . 1 1 . . 6 Critical Strikes 69 | . . . . 13 10 . 5 10 3 . 13 1 1 . 1 3 . . 9 Destroy 20 | . . . . . . . 5 8 . . . . . . . . . . 7 Blast 15 | . . . . 1 9 . . 2 . . 2 . . . . 1 . . . Corrupt 11 | . . . . . . . . . 2 . 7 1 . . . 1 . . . Smash 19 | . . . . 9 . . . . 1 . 4 . 1 . 1 1 . . 2 Impale 4 | . . . . 3 1 . . . . . . . . . . . . . . Melee Attacks 223 | . . . . 86 8 . . 2 13 . 36 2 7 . 2 23 5 . 39 Impact 114 | . . . . . . . . 2 13 . 36 2 7 . 2 23 5 . 24 Slashing . | . . . . . . . . . . . . . . . . . . . . Piercing 109 | . . . . 86 8 . . . . . . . . . . . . . 15 Sneak Attacks 37 | . . . . 7 4 . . 1 2 . 10 . . . 1 8 2 . 2 Combat Hostiles . | . . . . . . . . . . . . . . . . . . . . Follow-up Attacks . | . . . . . . . . . . . . . . . . . . . . Damage Inflicted 29108 | 63 . . . 4260 3128 . 881 701 1486 1348 5282 727 545 . 149 2614 1953 770 5201 Guns 3424 | 54 . . . . . . 727 434 . . . . . . . . . . 2209 Cannons 11591 | . . . . 570 2895 . 154 193 1269 . 2972 332 81 . 32 1927 624 434 108 Explosions 7411 | . . . . 278 . . . . 36 1348 1258 395 172 . . . 1143 336 2445 Melee 4336 | . . . . 1142 220 . . 74 181 . 1026 . 292 . 117 687 186 . 411 Ramming 96 | 9 . . . 20 13 . . . . . 26 . . . . . . . 28 Kinetic 11617 | 54 . . . 570 2895 . 881 627 . . 1071 246 81 . 32 1785 624 434 2317 Thermal 1252 | . . . . 278 . . . . 36 . 938 . . . . . . . . Explosive 6159 | . . . . . . . . . . 1348 320 395 172 . . . 1143 336 2445 Electromagnetic 3398 | . . . . . . . . . 1269 . 1901 86 . . . 142 . . . Impact 5224 | . . . . 2250 . . . 74 181 . 1026 . 292 . 117 687 186 . 411 Slashing . | . . . . . . . . . . . . . . . . . . . . Piercing 1362 | . . . . 1142 220 . . . . . . . . . . . . . . Highest Corruption 27 | . . . . 4 4 17 27 17 2 4 10 6 6 6 6 4 4 4 18 Average Corruption 5 | . . . . 2 4 11 15 13 2 3 6 6 6 6 6 2 4 4 7 Corruption Purged 27 | . . . . . . . 20 . . . 7 . . . . . . . . Corruption Blocked . | . . . . . . . . . . . . . . . . . . . . Effects 229 | . . . . 8 34 13 20 16 6 2 54 7 13 6 4 17 8 3 18 Message Errors 53 | . . . . . 10 1 3 4 3 1 12 3 2 2 . 5 2 1 4 Matter Fused 65 | . . . . 3 9 6 5 4 1 1 16 1 4 . 1 7 2 . 5 Heat Flow Errors 27 | . . . . 3 5 . 3 1 . . 5 1 . 1 1 2 1 . 4 Energy Discharges 27 | . . . . 2 4 4 1 2 2 . 5 1 3 1 . 1 1 . . Parts Rejected 2 | . . . . . . . . . . . . . . . . . . . 2 Parts Fused 3 | . . . . . . 1 1 . . . . . 1 . . . . . . Data Loss (minor) 26 | . . . . . . 1 5 3 . . 6 1 2 1 2 1 1 2 1 Data Loss (major) 8 | . . . . . 3 . . 1 . . 3 . 1 . . . . . . Misfires 8 | . . . . . 1 . 1 1 . . 4 . . . . . 1 . . Alerts 5 | . . . . . 1 . 1 . . . 1 . . 1 . 1 . . . Misdirections 1 | . . . . . . . . . . . . . . . . . . . 1 Weapon Failures 4 | . . . . . 1 . . . . . 2 . . . . . . . 1 Overload Shots . | . . . . . . . . . . . . . . . . . . . . Overflow Damage 3149 | . . . . 1034 25 . . 44 256 . 927 . 92 . 119 499 15 10 128 Projectiles 1074 | . . . . 728 3 . . . 97 . 190 . . . 2 54 . . . Explosions 314 | . . . . 181 . . . . . . 70 . 5 . . . 15 10 33 Melee 1761 | . . . . 125 22 . . 44 159 . 667 . 87 . 117 445 . . 95 Knockbacks 60 | . . . . 18 10 . . . 1 . 12 3 1 . . 9 1 2 3 Impact 27 | . . . . 12 . . . . 1 . 8 . 1 . . 1 1 . 3 Kinetic 27 | . . . . 5 8 . . . . . 3 2 . . . 7 . 2 . Secondary 6 | . . . . 1 2 . . . . . 1 1 . . . 1 . . . Self-Inflicted Damage 750 | . . . . 160 . . . . . . 49 21 46 . . . 76 . 398 Shots 24 | . . . . 2 . . . . . . 1 2 2 . . . 3 . 14 Rammed 11 | 4 . . . 3 3 . . . . . . . . . . . . . 1 Targets Rammed 14 | 5 . . . 4 3 . . . . . 1 . . . . . . . 1 Kicked 1 | . . . . . . . . . . . 1 . . . . . . . . Crushed 2 | 1 . . . 1 . . . . . . . . . . . . . . . Highest Temperature 323 | . . . . 323 222 . 250 59 136 . 284 213 16 225 119 278 161 . 212 Average Temperature 71 | . . . . 76 58 . 110 16 64 . 68 66 13 130 75 128 47 . 112 Received Heat Transfer 2241 | . . . . 1105 220 33 . 51 84 . 177 . 6 . . 120 99 51 295 Effects 1 | . . . . 1 . . . . . . . . . . . . . . . Shutdowns 1 | . . . . 1 . . . . . . . . . . . . . . . Siege Activations 1 | . . . . . . . . 1 . . . . . . . . . . . Total Turns 60 | . . . . . . . . 60 . . . . . . . . . . . Longest Duration 60 | . . . . . . . . 60 . . . . . . . . . . . Martial Activations . | . . . . . . . . . . . . . . . . . . . . Shielding Activations . | . . . . . . . . . . . . . . . . . . . . Robots Disrupted . | . . . . . . . . . . . . . . . . . . . . Combat Hostiles . | . . . . . . . . . . . . . . . . . . . . Robots Corrupted 36 | . . . . 8 . . . 1 6 . 15 . . . . 3 . . 3 Combat Hostiles 20 | . . . . 7 . . . . 4 . 6 . . . . 1 . . 2 Parts Fried 66 | . . . . 5 . . . 1 17 . 28 1 . . 2 9 . . 3 Impact Corruptions 69 | . . . . 21 . . . 2 5 . 22 . 4 . 2 9 . . 4 Robots Melted . | . . . . . . . . . . . . . . . . . . . . Combat Hostiles . | . . . . . . . . . . . . . . . . . . . . Parts Melted 2 | . . . . . 2 . . . . . . . . . . . . . . Heat Transferred 800 | . . . . 100 . . . . 50 . 650 . . . . . . . . Parts Sabotaged 2 | . . . . . . . . . . . . . . . . . . . 2 Parts Stolen . | . . . . . . . . . . . . . . . . . . . . Parts Stripped . | . . . . . . . . . . . . . . . . . . . . Power Chain Reactions 3 | . . . . . . . . . 1 . 2 . . . . . . . . Alert | -11 -10 -10 -8 -6 -6 -6 -6 -6 -5 -5 -5 -5 -5 -5 -4 -4 -4 -4 -3 ------- Run | Yrd Mat Sub Scr Fac Ext Cet Arc Hub Fac Was Fac Upp Upp Zhi Pro Fac Upp Upp Res Maximum Alert Level 3 | . . . . 1 2 1 1 2 1 . 3 . . . . 2 . . 3 Low Security (%) 48 | 100 100 . . 79 65 . 36 15 22 100 65 . . . . . . . . Level 1 24 | . . . . 20 16 100 63 7 77 . 15 . . . . 12 . . 9 Level 2 23 | . . . . . 17 . . 77 . . 15 . . . . 87 . . 58 Level 3 3 | . . . . . . . . . . . 3 . . . . . . . 31 Level 4 . | . . . . . . . . . . . . . . . . . . . . Level 5 . | . . . . . . . . . . . . . . . . . . . . High Security . | . . . . . . . . . . . . . . . . . . . . Max Security . | . . . . . . . . . . . . . . . . . . . . Peak Influence 925 | 5 3 . . 284 516 332 259 590 335 191 752 . . . . 684 . . 925 Initial 600 | . 3 . . . 53 272 88 50 245 113 118 . . . . 600 . . 298 Average 254 | 1 1 . . 109 159 276 213 448 243 149 254 . . . . 485 . . 559 Influence Increases 8031 | 15 . . . 996 1019 170 271 750 405 106 1256 150 70 . 5 1189 250 180 1199 Destroy 0b10 Robot/C 3580 | . . . . 500 460 80 80 300 240 . 520 140 60 . . 300 240 160 500 Destroy 0b10 Robot/NC 445 | 15 . . . 25 50 5 45 20 20 . 130 . 10 . 5 40 . . 80 Destroy Leader 680 | . . . . 130 46 . . 50 52 . 168 10 . . . 112 10 20 82 Allied During Kill 807 | . . . . . 364 81 125 237 . . . . . . . . . . . Successful Hack 232 | . . . . 38 38 . . . 16 . 53 . . . . 52 . . 35 Select Force Hacks 50 | . . . . . . . . 50 . . . . . . . . . . . Disable Machine 330 | . . . . 75 30 . 15 60 15 . 135 . . . . . . . . Anti-Garrison Action 150 | . . . . 150 . . . . . . . . . . . . . . . Destroy Structure 632 | . . . . 63 31 4 6 18 32 106 160 . . . . 70 . . 142 Advance Influence 600 | . . . . . . . . . . . . . . . . 600 . . . Partial Spotted 15 | . . . . . . . . . . . . . . . . 15 . . . Lose Combat Pursuer 510 | . . . . 15 . . . 15 30 . 90 . . . . . . . 360 Influence Decreases 7106 | 10 5 . . 887 642 434 348 395 581 261 679 457 292 217 5 738 338 100 717 Entered New Map 1979 | . 2 . . . 56 214 134 95 255 211 51 277 84 217 . . 168 70 145 Time Decay 3927 | 10 3 . . 527 506 140 214 190 326 50 598 170 198 . 5 428 170 30 362 Search Patrol Dispatched 300 | . . . . . . . . . . . . . . . . 300 . . . Lost Part 360 | . . . . 60 20 . . 10 . . 30 10 10 . . 10 . . 210 Lost Ally 240 | . . . . . 60 80 . 100 . . . . . . . . . . . Purge Threat 300 | . . . . 300 . . . . . . . . . . . . . . . Squads Dispatched 54 | . . . . 17 1 . . 6 4 . 12 . . . . 7 . . 7 Investigation 22 | . . . . 9 . . . 2 1 . 6 . . . . 3 . . 1 Extermination 16 | . . . . 4 . . . . 2 . 4 . . . . 3 . . 3 Reinforcement 7 | . . . . 2 1 . . 1 1 . 1 . . . . . . . 1 Assault 9 | . . . . 2 . . . 3 . . 1 . . . . 1 . . 2 Garrison . | . . . . . . . . . . . . . . . . . . . . Intercept . | . . . . . . . . . . . . . . . . . . . . Searches Triggered 2 | . . . . . . . . . . . . . . . . 2 . . . Construction Impeded 1 | . . . . . 1 . . . . . . . . . . . . . . Haulers Reinforced . | . . . . . . . . . . . . . . . . . . . . Active Scanning Responses . | . . . . . . . . . . . . . . . . . . . . Cargo Convoy Interrupts 1 | . . . . . . . . . . . . . . . . . . . 1 Stealth | -11 -10 -10 -8 -6 -6 -6 -6 -6 -5 -5 -5 -5 -5 -5 -4 -4 -4 -4 -3 --------- Run | Yrd Mat Sub Scr Fac Ext Cet Arc Hub Fac Was Fac Upp Upp Zhi Pro Fac Upp Upp Res Distress Signals 9 | . . . . 3 . 1 . . . . 1 . . . . 2 . . 2 Communications Jammed 41 | . . . . . . . . . . . . . . . 2 30 . . 9 Distress Signals 39 | . . . . . . . . . . . . . . . . 30 . . 9 Times Spotted 301 | . . . . 40 24 4 13 23 14 5 39 7 4 . 3 29 8 7 81 Peak Tracking Total 16 | . . . . 6 4 4 . 7 5 3 6 3 2 . 2 12 4 3 16 Tactical Retreats 15 | . . . . 1 . . . 1 1 . 3 . 1 . . . . . 8 Traps | -11 -10 -10 -8 -6 -6 -6 -6 -6 -5 -5 -5 -5 -5 -5 -4 -4 -4 -4 -3 ------- Run | Yrd Mat Sub Scr Fac Ext Cet Arc Hub Fac Was Fac Upp Upp Zhi Pro Fac Upp Upp Res Traps Triggered 9 | . . . . 3 1 . . . 2 . 3 . . . . . . . . Indirectly . | . . . . . . . . . . . . . . . . . . . . Trap Hack Attempts . | . . . . . . . . . . . . . . . . . . . . Triggered . | . . . . . . . . . . . . . . . . . . . . Disarmed . | . . . . . . . . . . . . . . . . . . . . Reprogrammed . | . . . . . . . . . . . . . . . . . . . . Reused . | . . . . . . . . . . . . . . . . . . . . Traps Extracted . | . . . . . . . . . . . . . . . . . . . . Installed . | . . . . . . . . . . . . . . . . . . . . Triggered . | . . . . . . . . . . . . . . . . . . . . Machines | -11 -10 -10 -8 -6 -6 -6 -6 -6 -5 -5 -5 -5 -5 -5 -4 -4 -4 -4 -3 ---------- Run | Yrd Mat Sub Scr Fac Ext Cet Arc Hub Fac Was Fac Upp Upp Zhi Pro Fac Upp Upp Res Machines Disabled 29 | . . . . 6 5 . 1 4 1 . 9 1 . . 1 . 1 . . Max in Single Turn 4 | . . . . 3 1 . 1 1 1 . 4 1 . . 1 . 1 . . Garrison Access 4 | . . . . 1 . . . 1 . . 1 . . . . . . . 1 Network Hub 1 | . . . . . . . . 1 . . . . . . . . . . . Machines Repaired . | . . . . . . . . . . . . . . . . . . . . Machines Dismantled . | . . . . . . . . . . . . . . . . . . . . Machines Sabotaged 1 | . . . . . . . . 1 . . . . . . . . . . . Overloaded Fab Kills . | . . . . . . . . . . . . . . . . . . . . Hacking | -11 -10 -10 -8 -6 -6 -6 -6 -6 -5 -5 -5 -5 -5 -5 -4 -4 -4 -4 -3 --------- Run | Yrd Mat Sub Scr Fac Ext Cet Arc Hub Fac Was Fac Upp Upp Zhi Pro Fac Upp Upp Res Machines Accessed 71 | . . . 3 20 8 . . 2 4 . 16 1 . 4 1 8 . . 4 Terminals 32 | . . . . 7 8 . . 2 . . 8 1 . . 1 3 . . 2 Fabricators 4 | . . . . 2 . . . . 1 . . . . . . 1 . . . Repair Stations 5 | . . . . 2 . . . . 1 . 1 . . . . 1 . . . Recycling Units 13 | . . . . 4 . . . . . . 5 . . . . 3 . . 1 Scanalyzers 6 | . . . . 3 . . . . 2 . 1 . . . . . . . . Garrison Access 4 | . . . . 2 . . . . . . 1 . . . . . . . 1 Total Hacks 209 | . . . 26 45 14 . . 2 18 . 46 5 . 17 6 23 . . 7 Successful 137 | . . . 26 23 9 . . 2 9 . 24 5 . 17 6 11 . . 5 Failed 72 | . . . . 22 5 . . . 9 . 22 . . . . 12 . . 2 Catastrophic 17 | . . . . 6 1 . . . 1 . 6 . . . . 2 . . 1 Database Lockouts . | . . . . . . . . . . . . . . . . . . . . Manual 59 | . . . . 15 6 1 . 2 3 . 22 . . . . 7 . . 3 Terminals 84 | . . . . 16 14 . . 2 . . 25 5 . . 6 11 . . 5 Fabricators 13 | . . . . 5 . . . . 6 . . . . . . 2 . . . Repair Stations 13 | . . . . 4 . . . . 1 . 2 . . . . 6 . . . Recycling Units 20 | . . . . 6 . . . . . . 9 . . . . 4 . . 1 Scanalyzers 32 | . . . . 12 . . . . 11 . 9 . . . . . . . . Garrison Access 4 | . . . . 2 . . . . . . 1 . . . . . . . 1 Terminal Hacks 79 | . . . 26 4 7 . . . . . 9 5 . 17 6 3 . . 2 Record 42 | . . . 26 . . . . . . . . 5 . 5 6 . . . . Part Schematic 6 | . . . . . 1 . . . . . 1 . . 4 . . . . . Robot Analysis 6 | . . . . 1 . . . . . . 1 . . 4 . . . . . Prototype ID Bank 8 | . . . . . 1 . . . . . 2 . . 4 . . . . 1 Open Door 3 | . . . . . 3 . . . . . . . . . . . . . . Branch Access Points 2 | . . . . . . . . . . . 1 . . . . . . . 1 Terminal Index 1 | . . . . . . . . . . . 1 . . . . . . . . Alert Level 1 | . . . . . 1 . . . . . . . . . . . . . . Unreport Threat 2 | . . . . 2 . . . . . . . . . . . . . . . Locate Traps 5 | . . . . 1 1 . . . . . 2 . . . . 1 . . . Registered Components 2 | . . . . . . . . . . . 1 . . . . 1 . . . Registered Prototypes 1 | . . . . . . . . . . . . . . . . 1 . . . Fabricator Hacks 7 | . . . . 3 . . . . 2 . . . . . . 2 . . . Network Status 1 | . . . . . . . . . 1 . . . . . . . . . . Load Schematic 4 | . . . . 2 . . . . 1 . . . . . . 1 . . . Build 2 | . . . . 1 . . . . . . . . . . . 1 . . . Repair Station Hacks 3 | . . . . . . . . . . . 1 . . . . 2 . . . Scan Component 2 | . . . . . . . . . . . 1 . . . . 1 . . . Repair 1 | . . . . . . . . . . . . . . . . 1 . . . Recycling Unit Hacks . | . . . . . . . . . . . . . . . . . . . . Scanalyzer 22 | . . . . 10 . . . . 6 . 6 . . . . . . . . Insert Component 12 | . . . . 6 . . . . 3 . 3 . . . . . . . . Analyze 10 | . . . . 4 . . . . 3 . 3 . . . . . . . . Garrison Access Hacks 2 | . . . . . . . . . . . 1 . . . . . . . 1 Seal Access 2 | . . . . . . . . . . . 1 . . . . . . . 1 Unauthorized Hacks 24 | . . . . 6 2 . . 2 1 . 7 . . . . 4 . . 2 Terminals 8 | . . . . 1 2 . . 2 . . 1 . . . . 1 . . 1 Track 1 | . . . . 1 . . . . . . . . . . . . . . . Assimilate 1 | . . . . . . . . . . . . . . . . . . . 1 Botnet 4 | . . . . . 2 . . . . . 1 . . . . 1 . . . Sabotage 2 | . . . . . . . . 2 . . . . . . . . . . . Fabricators 2 | . . . . 1 . . . . 1 . . . . . . . . . . Recompile 2 | . . . . 1 . . . . 1 . . . . . . . . . . Repair Stations 14 | . . . . 4 . . . . . . 6 . . . . 3 . . 1 Patch 1 | . . . . . . . . . . . 1 . . . . . . . . Recycling Units . | . . . . . . . . . . . . . . . . . . . . Fedlink 13 | . . . . 4 . . . . . . 5 . . . . 3 . . 1 Scanalyzers . | . . . . . . . . . . . . . . . . . . . . Garrison Access . | . . . . . . . . . . . . . . . . . . . . Data Cores Recovered 3 | . . . . . 1 . . . . . 1 . . . . . . . 1 Used . | . . . . . . . . . . . . . . . . . . . . Hacking Detections 34 | . . . . 15 4 1 . . 3 . 6 . . . . 3 . . 2 Full Trace Events 3 | . . . . 3 . . . . . . . . . . . . . . . Feedback Events . | . . . . . . . . . . . . . . . . . . . . Feedback Blocked . | . . . . . . . . . . . . . . . . . . . . Robot Schematics Acquired . | . . . . . . . . . . . . . . . . . . . . Robots Built . | . . . . . . . . . . . . . . . . . . . . Authchips . | . . . . . . . . . . . . . . . . . . . . Time . | . . . . . . . . . . . . . . . . . . . . Total Robot Build Rating . | . . . . . . . . . . . . . . . . . . . . Part Schematics Acquired 14 | . . . . 3 1 . . . 2 . 4 . . 4 . . . . . Parts Built 3 | . . . . 1 . . . . . . . . . . . 2 . . . Authchips 2 | . . . . 1 . . . . . . . . . . . 1 . . . Time 109 | . . . . 73 . . . . . . . . . . . 36 . . . Total Part Build Rating 9 | . . . . 3 . . . . . . . . . . . 6 . . . Parts Repaired 1 | . . . . . . . . . . . . . . . . 1 . . . Time 50 | . . . . . . . . . . . . . . . . 50 . . . Parts Recycled . | . . . . . . . . . . . . . . . . . . . . Recycled Matter . | . . . . . . . . . . . . . . . . . . . . Retrieved Matter . | . . . . . . . . . . . . . . . . . . . . Retrieved Components . | . . . . . . . . . . . . . . . . . . . . Parts Scanalyzed 9 | . . . . 4 . . . . 2 . 3 . . . . . . . . Part Schematics Acquired 8 | . . . . 3 . . . . 2 . 3 . . . . . . . . Parts Damaged 2 | . . . . . . . . . 1 . 1 . . . . . . . . Bothacking | -11 -10 -10 -8 -6 -6 -6 -6 -6 -5 -5 -5 -5 -5 -5 -4 -4 -4 -4 -3 ------------ Run | Yrd Mat Sub Scr Fac Ext Cet Arc Hub Fac Was Fac Upp Upp Zhi Pro Fac Upp Upp Res Used RIF Installer . | . . . . . . . . . . . . . . . . . . . . Robots Hacked . | . . . . . . . . . . . . . . . . . . . . Non-combat . | . . . . . . . . . . . . . . . . . . . . Combat . | . . . . . . . . . . . . . . . . . . . . Robot Hacks Applied . | . . . . . . . . . . . . . . . . . . . . Relay Couplers Released 6 | . . . . 4 . . . . . . 2 . . . . . . . . Machine Destruction 6 | . . . . 4 . . . . . . 2 . . . . . . . . Fabnet Peak Effective % . | . . . . . . . . . . . . . . . . . . . . Robots Rewired 12 | . . . . . 12 . . . . . . . . . . . . . . Allies Hacked . | . . . . . . . . . . . . . . . . . . . . Hacks Repelled . | . . . . . . . . . . . . . . . . . . . . Allies | -11 -10 -10 -8 -6 -6 -6 -6 -6 -5 -5 -5 -5 -5 -5 -4 -4 -4 -4 -3 -------- Run | Yrd Mat Sub Scr Fac Ext Cet Arc Hub Fac Was Fac Upp Upp Zhi Pro Fac Upp Upp Res Total Allies 21 | . . . . . 17 4 . . . . . . . . . . . . . Largest Group 13 | . . . . . 13 13 11 8 . . . . . . . . . . . Highest-Rated Group 697 | . . . . . 461 697 601 405 . . . . . . . . . . . Highest-Rated Ally 159 | . . . . . 159 159 137 96 . . . . . . . . . . . Total Orders 5 | . . . . . . . 2 3 . . . . . . . . . . . STAY 2 | . . . . . . . 1 1 . . . . . . . . . . . FOLLOW 2 | . . . . . . . 1 1 . . . . . . . . . . . AID 1 | . . . . . . . . 1 . . . . . . . . . . . Ally Attacks 244 | . . . . . 123 34 20 67 . . . . . . . . . . . Total Damage 5589 | . . . . . 2087 846 541 2115 . . . . . . . . . . . Kills 36 | . . . . . 14 6 3 13 . . . . . . . . . . . Allies Corrupted . | . . . . . . . . . . . . . . . . . . . . Allies Melted . | . . . . . . . . . . . . . . . . . . . . Intel | -11 -10 -10 -8 -6 -6 -6 -6 -6 -5 -5 -5 -5 -5 -5 -4 -4 -4 -4 -3 ------- Run | Yrd Mat Sub Scr Fac Ext Cet Arc Hub Fac Was Fac Upp Upp Zhi Pro Fac Upp Upp Res Active Infowar (turns) 14617 | 27 48 266 2846 2300 1832 291 450 381 725 105 1901 350 413 201 247 1059 343 67 765 Optics 11425 | . . . . 2295 1832 291 450 381 725 105 1901 350 413 201 247 1059 343 67 765 Structural 6887 | . . . . 2035 . . . 207 338 . 1261 319 413 197 247 901 334 67 568 Seismic 3998 | 27 48 266 2846 811 . . . . . . . . . . . . . . . Cloaking 437 | . . . . . . . . . . . . . . . . . . . 437 Jamming 2907 | . . . . . . . . . . . . 267 413 197 247 1029 94 67 593 Robot Analysis Total 6 | . . . . 1 . . . . . . 1 . . 4 . . . . . Derelict Logs Recovered 8 | . . . 2 . . . . . . . . . 2 . 2 . 2 . . Drone Launches . | . . . . . . . . . . . . . . . . . . . . Drone Recoveries . | . . . . . . . . . . . . . . . . . . . . Exploration | -11 -10 -10 -8 -6 -6 -6 -6 -6 -5 -5 -5 -5 -5 -5 -4 -4 -4 -4 -3 ------------- Run | Yrd Mat Sub Scr Fac Ext Cet Arc Hub Fac Was Fac Upp Upp Zhi Pro Fac Upp Upp Res Turns Passed 15344 | 105 48 266 3424 2300 1832 291 450 381 725 105 1901 350 413 201 247 1059 343 67 836 Spaces Moved 8684 | 50 20 146 1638 947 671 97 197 199 595 84 1344 243 374 170 236 710 249 33 681 Core 480 | 9 . . 106 . . . . . . . . . . . . . . . 365 Treads 3709 | 41 20 146 1532 947 671 97 197 58 . . . . . . . . . . . Legs 4495 | . . . . . . . . 141 595 84 1344 243 374 170 236 710 249 33 316 Wheels . | . . . . . . . . . . . . . . . . . . . . Hover . | . . . . . . . . . . . . . . . . . . . . Flight . | . . . . . . . . . . . . . . . . . . . . Fastest Speed 50 | 50 160 160 50 155 161 160 160 100 100 100 100 100 100 100 100 100 100 100 50 Average Speed 141 | 140 160 160 203 177 231 194 160 118 100 100 100 124 100 100 100 100 100 100 76 Slowest Speed 250 | 160 160 160 240 245 250 250 160 240 100 100 100 170 100 170 100 100 100 100 170 Overloaded Moves . | . . . . . . . . . . . . . . . . . . . . Propulsion Burnouts . | . . . . . . . . . . . . . . . . . . . . Robots Hopped . | . . . . . . . . . . . . . . . . . . . . Potential Cave-ins . | . . . . . . . . . . . . . . . . . . . . Cave-ins Triggered 1 | . . . . . . . . . . . . . . . . . . . 1 Teleports 1 | . . . . . . . . . . . . . . . . . . . 1 Exploration Rate (%) 44 | 4 6 17 90 30 88 54 94 10 17 79 40 51 71 61 52 31 53 11 24 Regions Visited 19 Branch Regions 12 Pre-discovered Areas 10 | . . . 4 1 . . . . . . . . . 3 1 . 1 . . Known Exits Taken 6 | . . . . 1 . . . 1 . . 1 . . . 1 1 . 1 . Unknown Exits Taken 11 | 1 1 1 1 . 1 1 1 . . . . 1 1 1 . . 1 . . Scrap Searched 10 | . . 3 6 . . . . . . . . . . . 1 . . . . Spaces Dug 129 | . . . . 34 1 . . 1 9 . 27 2 4 . 1 24 1 . 25 Terrain Destroyed 780 | . . . . 86 27 . 7 5 19 129 89 75 48 . 2 36 76 94 87 Melee 111 | . . . . 32 1 . . 1 9 . 23 2 3 . . 14 1 . 25 Projectile 117 | . . . . 16 26 . 7 4 3 . 25 1 4 . 2 22 4 1 2 AOE 552 | . . . . 38 . . . . 7 129 41 72 41 . . . 71 93 60 Terrain Rammed 1 | . . . . . . . . . . . . . . . . . . . 1 Walls Destroyed . | . . . . . . . . . . . . . . . . . . . . Machines Disabled . | . . . . . . . . . . . . . . . . . . . . Actions | -11 -10 -10 -8 -6 -6 -6 -6 -6 -5 -5 -5 -5 -5 -5 -4 -4 -4 -4 -3 --------- Run | Yrd Mat Sub Scr Fac Ext Cet Arc Hub Fac Was Fac Upp Upp Zhi Pro Fac Upp Upp Res Total 10762 | 73 36 172 1746 1367 849 206 287 300 671 91 1718 275 391 201 239 942 301 47 850 Wait 627 | . 17 19 . 145 23 83 29 23 7 . 137 1 2 1 . 108 18 . 14 Move 8667 | 50 19 145 1637 946 670 96 196 198 595 83 1343 242 373 169 235 709 248 32 681 Hop . | . . . . . . . . . . . . . . . . . . . . Pick Up 170 | 7 . 3 53 26 8 9 4 10 8 . 13 3 . 3 . 12 3 1 7 Fast Attach 80 | 5 . . 8 15 3 2 4 7 1 . 10 1 . 11 . 4 . . 9 Attach 112 | 2 . . 4 26 7 3 1 8 3 . 17 3 1 3 . 12 1 2 19 Detach 63 | . . . 3 13 2 1 1 4 2 . 12 3 1 2 . 7 . . 12 Swap 113 | 1 . 2 4 10 3 . 4 14 6 3 34 5 . . . 13 7 2 5 Drop 180 | . . 1 37 25 9 12 5 13 6 . 20 5 . 12 . 9 3 1 22 Fire 435 | 4 . 2 . 70 41 . 43 20 30 5 91 10 7 . 2 44 16 9 41 Melee 223 | . . . . 86 8 . . 2 13 . 36 2 7 . 2 23 5 . 39 Ram 1 | . . . . . . . . . . . . . . . . . . . 1 Kick 1 | . . . . . . . . . . . 1 . . . . . . . . Crush 11 | 4 . . . 4 3 . . . . . . . . . . . . . . Escape Stasis 2 | . . . . . 2 . . . . . . . . . . . . . . Rewire 70 | . . . . . 70 . . . . . . . . . . . . . . Trap . | . . . . . . . . . . . . . . . . . . . . Miscellaneous 7 | . . . . 1 . . . 1 . . 4 . . . . 1 . . . Route ------- -11/Scrapyard -10/Materials -10/Subcaves (discovered 2 exits: [*Mat] / *Scr) -8/Scraptown (discovered 2 exits: *Fac x2) -6/Factory (discovered 6 exits: Fac x2 / Low x2 / *Ext x2) -6/Extension (discovered 2 exits: *Fac / *Cet) -6/Cetus -6/Archives (discovered 3 exits: *Fac / *Hub x2) -6/Hub_04(d) -5/Factory (discovered 2 exits: *Fac / Upp) -5/Waste -5/Factory (discovered 4 exits: Fac x2 / *Upp x2) -5/Upper Caves -5/Upper Caves (discovered 2 exits: *Fac / *Zhi) -5/Zhirov -4/Proximity Caves -4/Factory (discovered 4 exits: *Res x3 / *Upp) -4/Upper Caves -4/Upper Caves -3/Research (discovered 3 exits: *Res / Tes x2) History --------- Turn | Location | Event 5 | -11/Scrapyard | Discovered new exit (range 15) 106 | -11/Scrapyard | Entered Materials 107 | -10/Materials | Met a group of wandering Federalists 139 | -10/Materials | Discovered new exit (range 6) 154 | -10/Materials | Entered Subcaves 154 | -10/Subcaves | Accompanied by 2 allies 155 | -10/Subcaves | Continued accompanying wandering Federalists (6) 226 | -10/Subcaves | Discovered new exit (range 12) 241 | -10/Subcaves | Shifting Twisted Machinery released Sub. Laser 308 | -10/Subcaves | Build established: Mutant 395 | -10/Subcaves | Wandering Federalist uncovered a shortcut to Scraptown 420 | -10/Subcaves | Entered Scraptown 472 | -8/Scraptown | Heard Great Nut preacher, LISTEN AND RECITE! 548 | -8/Scraptown | Scanned Subdweller tech in exchange for log data 552 | -8/Scraptown | Learned Factory stockpile data 553 | -8/Scraptown | Learned location of Zion (-6) 610 | -8/Scraptown | Discovered new exit (range 13) 1306 | -8/Scraptown | Visited UFD Registry 1306 | -8/Scraptown | Registered with UFD as "Dualblaster" 1342 | -8/Scraptown | Visited Shadow of the Wyrm 1393 | -8/Scraptown | Visited Fellowship of the Rings 1429 | -8/Scraptown | Visited Assassins FH 1457 | -8/Scraptown | Visited Red Mages 1613 | -8/Scraptown | Visited CPS Storage 1647 | -8/Scraptown | Visited Symbiants 1906 | -8/Scraptown | Visited Cartography Club 2109 | -8/Scraptown | Delivered Scrap Shield to a Scientist 2387 | -8/Scraptown | Found Surveybot 17 Chip 2407 | -8/Scraptown | Learned location of Extension (-6) 2407 | -8/Scraptown | Learned location of Cetus (-6) 2407 | -8/Scraptown | Learned 8 Factory zone layouts 2407 | -8/Scraptown | Learned 12 Factory zone layouts 2407 | -8/Scraptown | Learned 20 Factory zone layouts 2407 | -8/Scraptown | Learned 16 Research zone layouts 2407 | -8/Scraptown | Learned 8 Access zone layouts 2407 | -8/Scraptown | Learned 4 Mines zone layouts 2407 | -8/Scraptown | Learned 8 Upper Caves zone layouts 2407 | -8/Scraptown | Learned 8 Proximity Caves zone layouts 2407 | -8/Scraptown | Learned 12 Proximity Caves zone layouts 2407 | -8/Scraptown | Learned Factory emergency access door positions 2407 | -8/Scraptown | Learned location of 3 exits from Factory 2407 | -8/Scraptown | Learned location of 1 exit from Research 2420 | -8/Scraptown | Found Deep Structural Scanner 2550 | -8/Scraptown | Visited Junk Cannon Lab 2568 | -8/Scraptown | Found Prototype Special Weapon 2568 | -8/Scraptown | Identified Junk Cannon 2635 | -8/Scraptown | Visited Science Testing Area 2678 | -8/Scraptown | Visited Observation Area 2762 | -8/Scraptown | Visited Abandonware Association 2801 | -8/Scraptown | Learned abandonware demo "POISON.EXE" 2851 | -8/Scraptown | Visited DA-N13 Charitable Foundation 2861 | -8/Scraptown | Found DCF Scrap (30 items) 2928 | -8/Scraptown | Visited Chapter 10 3005 | -8/Scraptown | Visited Scrapoid Pod Storage 3048 | -8/Scraptown | Visited Supply Room 3152 | -8/Scraptown | Found Scrapoid Pod 3714 | -8/Scraptown | Met Optimus 3714 | -8/Scraptown | Accepted into 0bPrime 3839 | -8/Scraptown | Discovered new exit (range 3) 3844 | -8/Scraptown | Entered Factory 3844 | -6/Factory | Evolved 8 slots: Propulsion x2, Utility x5, Weapon x1 3845 | -6/Factory | Identified exit to Factory 3845 | -6/Factory | Identified exit to Lower Caves 3845 | -6/Factory | Identified exit to Extension 3907 | -6/Factory | Loaded intel: 8 recycling unit locations 4092 | -6/Factory | Learned location of Protoforge (-2) 4518 | -6/Factory | Noticed a derelict Sapper rigging charges 5971 | -6/Factory | Found Prototype Launcher 5971 | -6/Factory | Identified Scatter Rocket Array 5979 | -6/Factory | Fabricated CPS Tube? 6144 | -6/Factory | Entered Extension 6205 | -6/Extension | Rescued a captive Derelict 6206 | -6/Extension | Rescued a captive Derelict 6433 | -6/Extension | Rescued a captive Derelict 6570 | -6/Extension | Rescued A7 7126 | -6/Extension | Spotted B-75 Beast 7150 | -6/Extension | Destroyed B-75 Beast 7166 | -6/Extension | Spotted B-75 Beast 7183 | -6/Extension | Destroyed B-75 Beast 7264 | -6/Extension | Build established: Tank 7423 | -6/Extension | Rescued a captive Derelict 7606 | -6/Extension | Build established: Commander-Tank 7918 | -6/Extension | Discovered exit to Factory (range 10) 7920 | -6/Extension | Discovered new exit (range 6) 7976 | -6/Extension | Entered Cetus 7976 | -6/Cetus | Accompanied by 13 allies (A7) 7981 | -6/Cetus | Acquired a Cetus Manufacturing Module code from A7 8009 | -6/Cetus | Spotted Cetus Guard 8009 | -6/Cetus | Spotted Cetus Guard 8012 | -6/Cetus | Spotted Cetus Guard 8016 | -6/Cetus | Allies destroyed Cetus Guard 8023 | -6/Cetus | Spotted Cetus Guard 8025 | -6/Cetus | Allies destroyed Cetus Guard 8042 | -6/Cetus | Allies destroyed Cetus Guard 8051 | -6/Cetus | Allies destroyed Cetus Guard 8085 | -6/Cetus | Lost 5 allies 8095 | -6/Cetus | System corruption reached 10% 8151 | -6/Cetus | Started Cetus Manufacturing Module 8160 | -6/Cetus | Discovered new exit (range 22) 8176 | -6/Cetus | Manufactured an Enhanced Grunt 8201 | -6/Cetus | Manufactured an Enhanced Grunt 8226 | -6/Cetus | Manufactured an Enhanced Grunt 8251 | -6/Cetus | Manufactured an Enhanced Grunt 8267 | -6/Cetus | Entered Archives 8267 | -6/Archives | Accompanied by 11 allies (A7) 8335 | -6/Archives | Discovered exit to Factory (range 20) 8340 | -6/Archives | Discovered new exit (range 15) 8445 | -6/Archives | Discovered new exit (range 22) 8717 | -6/Archives | Entered Hub_04(d) 8717 | -6/Hub_04(d) | Accompanied by 8 allies 8764 | -6/Hub_04(d) | Network Hub disabled 8789 | -6/Hub_04(d) | Spotted Lightning 8795 | -6/Hub_04(d) | Spotted Lightning 8797 | -6/Hub_04(d) | Spotted Lightning 8804 | -6/Hub_04(d) | Allies destroyed Lightning 8818 | -6/Hub_04(d) | Destroyed Lightning 8849 | -6/Hub_04(d) | Lost 6 allies 8855 | -6/Hub_04(d) | Found Prototype Energy Cannon 8859 | -6/Hub_04(d) | Found Prototype Processor 8878 | -6/Hub_04(d) | Destroyed Lightning 8909 | -6/Hub_04(d) | Found Prototype Device 8909 | -6/Hub_04(d) | Identified Exp. EM Shield 8938 | -6/Hub_04(d) | Found Prototype Device 8938 | -6/Hub_04(d) | Identified Exp. Phase Shifter 8950 | -6/Hub_04(d) | Found Exp. EM Shield 8954 | -6/Hub_04(d) | Identified EMDS 8970 | -6/Hub_04(d) | Found Exp. EM Shield 8977 | -6/Hub_04(d) | Found Corrupted Prototype Device 8978 | -6/Hub_04(d) | Identified Exp. Thermal Shield 9019 | -6/Hub_04(d) | Discovered exit to Factory (range 19) 9048 | -6/Hub_04(d) | Spotted Lightning 9060 | -6/Hub_04(d) | Spotted Lightning 9067 | -6/Hub_04(d) | First assault squad dispatched 9098 | -6/Hub_04(d) | Entered Factory 9098 | -5/Factory | Evolved 2 slots: Power x1, Utility x1 9099 | -5/Factory | Identified exit to Upper Caves 9131 | -5/Factory | Found Hvy. Reflective Plating 9142 | -5/Factory | Build established: Scavenger-Mutant 9310 | -5/Factory | Identified Exp. Targeting Computer 9652 | -5/Factory | Discovered new exit (range 11) 9738 | -5/Factory | Identified exit to Factory 9823 | -5/Factory | Sucked down chute 9823 | -5/Factory | Entered Waste 9830 | -5/Waste | Spotted C-40 Crusher 9838 | -5/Waste | EMP discharged 9846 | -5/Waste | Spotted C-40 Crusher 9846 | -5/Waste | Spotted C-40 Crusher 9869 | -5/Waste | Destroyed C-40 Crusher 9872 | -5/Waste | Spotted C-40 Crusher 9884 | -5/Waste | Destroyed C-40 Crusher 9887 | -5/Waste | Spotted C-40 Crusher 9889 | -5/Waste | Spotted C-40 Crusher 9907 | -5/Waste | Discovered new exit (range 22) 9928 | -5/Waste | Entered Factory 10021 | -5/Factory | Loaded intel: 8 recycling unit locations 10599 | -5/Factory | Discovered exit to Factory (range 8) 10717 | -5/Factory | System corruption reached 10% 11652 | -5/Factory | Discovered exit to Factory (range 7) 11728 | -5/Factory | First assault squad dispatched 11829 | -5/Factory | Entered Upper Caves 11831 | -5/Upper Caves | UFD Scientist delivered a prototype 11839 | -5/Upper Caves | Found Prototype Protection 11839 | -5/Upper Caves | Identified Enh. Scrap Shield 11916 | -5/Upper Caves | Learned 8 Research zone layouts 11916 | -5/Upper Caves | Learned Armory terminal intel 11916 | -5/Upper Caves | Learned Factory garrison access intel 12082 | -5/Upper Caves | Ambushed by research squad 12172 | -5/Upper Caves | Discovered new exit (range 8) 12179 | -5/Upper Caves | Entered another Upper Caves area 12186 | -5/Upper Caves | Discovered exit to Factory (range 22) 12188 | -5/Upper Caves | Attracted the attention of an 0b10 checkpoint 12224 | -5/Upper Caves | Learned Factory interactive machine intel 12368 | -5/Upper Caves | Encountered a Warlord checkpoint 12397 | -5/Upper Caves | Learned location of 1 exit from Factory 12582 | -5/Upper Caves | Discovered new exit (range 12) 12592 | -5/Upper Caves | Entered Zhirov 12592 | -5/Zhirov | Discovered new exit (range 3) 12617 | -5/Zhirov | Met Zhirov 12639 | -5/Zhirov | Learned location of Quarantine (-2) 12639 | -5/Zhirov | Learned location of Testing (-3) 12639 | -5/Zhirov | Learned location of Command (-1) 12645 | -5/Zhirov | Zhirov requested help retrieving the SGEMP Prototype 12660 | -5/Zhirov | Found Alien Artifact 12660 | -5/Zhirov | Identified Integrated Dissipator 12660 | -5/Zhirov | Installed Integrated Dissipator, increased core heat dissipation (+20) 12711 | -5/Zhirov | Found Alien Artifact 12793 | -5/Zhirov | Entered Proximity Caves 12808 | -4/Proximity Caves | Learned Research trap positions 12898 | -4/Proximity Caves | Spotter reported a threat 12911 | -4/Proximity Caves | Spotted B-86 Titan 12936 | -4/Proximity Caves | Spotter reported a threat 12951 | -4/Proximity Caves | Spotter reported a threat 12989 | -4/Proximity Caves | Spotter reported a threat 12997 | -4/Proximity Caves | Learned Research garrison access intel 13024 | -4/Proximity Caves | Learned Research terminal intel 13024 | -4/Proximity Caves | Learned Armory security intel 13024 | -4/Proximity Caves | Learned Extension security intel 13024 | -4/Proximity Caves | Learned Armory stockpile data 13024 | -4/Proximity Caves | Learned location of 1 exit from Factory 13024 | -4/Proximity Caves | Learned location of Armory (-4) 13040 | -4/Proximity Caves | Entered Factory 13040 | -4/Factory | Evolved 2 slots: Propulsion x1, Utility x1 13041 | -4/Factory | Identified exit to Research 13042 | -4/Factory | Identified exit to Upper Caves 13043 | -4/Factory | Loaded intel: 52 interactive machine locations 13044 | -4/Factory | Loaded intel: 3 garrison access locations 13207 | -4/Factory | Repaired Broken Exp. Targeting Computer 13290 | -4/Factory | Search patrols dispatched 13306 | -4/Factory | Fabricated Imp. Utility Shielding? 13465 | -4/Factory | Loaded intel: 8 recycling unit locations 13487 | -4/Factory | Spotted B-86 Titan 13790 | -4/Factory | Search patrols dispatched 14040 | -4/Factory | First assault squad dispatched 14099 | -4/Factory | Entered Upper Caves 14118 | -4/Upper Caves | Attracted the attention of an 0b10 checkpoint 14179 | -4/Upper Caves | Learned Research garrison access intel 14355 | -4/Upper Caves | Attracted the attention of an 0b10 outpost 14426 | -4/Upper Caves | Discovered new exit (range 10) 14442 | -4/Upper Caves | Entered another Upper Caves area 14449 | -4/Upper Caves | Discovered exit to Research (range 22) 14503 | -4/Upper Caves | Destroyed 8 combat bots 14509 | -4/Upper Caves | Entered Research 14509 | -3/Research | Evolved 2 slots: Utility x1, Weapon x1 14510 | -3/Research | Identified exit to Testing 14511 | -3/Research | Identified exit to Research 14513 | -3/Research | Loaded intel: 82 trap records 14514 | -3/Research | Loaded intel: 24 terminal locations 14515 | -3/Research | Loaded intel: 4 garrison access locations 14631 | -3/Research | Destroyed 8 combat bots 14980 | -3/Research | Loaded intel: 5 recycling unit locations 14984 | -3/Research | Build established: Scavenger-Tank 15007 | -3/Research | System corruption reached 10% 15009 | -3/Research | First assault squad dispatched 15108 | -3/Research | Lost 7 parts (3n3u1w) 15121 | -3/Research | Cargo convoy interrupted 15167 | -3/Research | Spotted B-86 Titan 15189 | -3/Research | Spotted Executioner 15205 | -3/Research | Identified Transdimensional Reconstructor 15205 | -3/Research | Warped through subspace 15207 | -3/Research | Lost 4 parts (3u1w) 15251 | -3/Research | Core integrity fell below 50% 15274 | -3/Research | Crushed by falling debris 15311 | -3/Research | Lost 3 parts (1n2u) 15328 | -3/Research | Core integrity fell below 20% 15345 | -3/Research | Core destroyed Last Messages --------------- 15289_ Slug penetrates R-10 Processor. 15290_ R-10 Processor inserts Unknown Storage into recycling unit. 15293_ R-10 Processor inserts Adv. Component Analysis Suite into recycling unit. 15294_ Recycling unit begins recycling process. 15296_ R-10 Processor inserts Matter Compressor into recycling unit. 15302_ Slug penetrates Recycling Unit. 15313_ Penetrated by Slug. 15313_ Slug penetrates Wall. 15323_ System corrupted: Heat flow error (+278). 15327_ Knocked back. 15334_ Slug penetrates Wall. 15336_ Penetrated by Slug. 15337_ Slug penetrates Wall. 15340_ ALERT: Potential suspicious activity detected, Programmers report to Research Zone 9M. 15340_ Lance destroyed. 15340_ Critical hit (Burn: +37). 15345_ Slammed into Wall. 15345_ Destabilizing: Core damaged (-26). Map ----- +----------------------------------------------------+ | ??????????????????????????????#####+######## | | ???????????????????????????????# # | | ???????????????????????????????# # | | ??????????????????????????????## # "" " | | ??????????????????????????????#" ^"""" + ""S" | | ??????????????????????????????#" ^ """" =# """" | | ??????????????????????????????#" """" # | | ??????????????????????????????#T """" # | | ??????????????????????????????#" ^ ####### | | ??????????????????????????????#" #?????? | | ??????????????????????????????#" ?????? | | ?????????????????????########### """" ?????? | | ?????????????????????# # ^ """" #?????? | | ?????????????????????# # """" #?????? | | ?????????????????????# # """" #?????? | | ?????????????????????# """ + #?????? | | ?????????????????????# """ # #?????" | | ?????????????????????# """ # ??????" | | ?????????????????????# # ??????? | | ?????????????????????# #" ??????" | | ?????????????????????###########"" ^ ??????" | | ???????????????????????????????#"" # | | ???????????????????????????????#"" # | | ???????????????????????????????#"" ### ### | | ??????????????????##############"T #?###?? | | ??????????????????# @ #"" ^ #?????? | | ??????????????????# #"" #?????? | | ??????????????????# """ """ #"" #?????? | | ??????????????????# """ """ #"" ! ####### | | ??????????????????# """ """ #" | | ??????????????????# + | | ??????????????????# # | | ??????????????????# """ """ + | | ??????????????????# """ """ ############### | | ??????????????????# """ """ #???# # | | ??????????????????# #???## # | | ??????????????????# #????# "" # | | ??????????????????########"########## """ # | | ?????????????????????????## *! # R" # | | ??????????????????????????# ! # """ + | | ?????????????????????????## # "" # | | ?????????????????????????#" " # | | ?????????????????????????#####+###### ! # | | ???????????????#####?????????# #????########## | | ??????????????? #?????????# #?????????????# | | ??????????????? #?????????# #?????????????# | | ???????""????????????????????# #?????????????# | | ???????""????????????????????#%#?????????????#"### | | ???????""????????????????????# #?????????????#"### | | ???????T????????????????????? ?????????????# | +----------------------------------------------------+ Best States ------------- Heat Dissipation 66 Coolant Potential 65 Energy Generation 45 Energy Capacity 640 Matter Stores 550 Matter Capacity 550 Sight Range 22 Terrain Scan Density 10 Jamming Range 14 Cloak Strength 3 Armor Coverage 1025 Resistance: TH 30 Resistance: EM 75 Utility Shielding 66 Weapon Shielding 66 Weapon Cycling 20 Phase Shifting 20 Evasion (%) 55 Targeting Accuracy 12 Core Analysis 6 Recoil Reduction 6 Particle Charging 30 Offensive Hacking 24 Authchip Count 3 Item Schematics ----------------- Multitool | -6/Factory | Scanalyzed CPS Tube | -6/Factory | Scanalyzed Imp. Datajack | -6/Factory | Scanalyzed Adv. Melee Analysis Suite | -6/Extension | Hacked Imp. Weapon Shielding | -5/Factory | Scanalyzed Exp. Targeting Computer | -5/Factory | Scanalyzed Imp. Utility Shielding | -5/Factory | Hacked Quantum Reactor | -5/Factory | Scanalyzed Centrium Medium Armor Plating | -5/Factory | Scanalyzed Exp. Phase Shifter | -5/Factory | Scanalyzed Assault Drone Bay | -5/Zhirov | Free Exp. Heat Sink | -5/Zhirov | Free Exp. Optical Array | -5/Zhirov | Free Imp. Arc Thrower | -5/Zhirov | Free Robot Schematics ------------------ None Fabricated ------------ CPS Tube | x1 | -6/Factory | Authchip Imp. Utility Shielding | x2 | -4/Factory | Authchip Repaired ---------- Exp. Targeting Computer | 99% | -4/Factory | Broken Alien Tech Used ----------------- Integrated Dissipator Transdimensional Reconstructor Achievements -------------- None Challenges ------------ None Game ------ Seed LayeredArmorCloak Manual? 0 Play Time 02:45:56 Cumulative 800.9 hours Start 2025.05.08 @ 14:53:35 End 2025.05.09 @ 02:40:55 Sessions 9 Manual Loads 0 Difficulty Rogue Special Mode None Game No. 802 Rogue 802 Adventurer 0 Explorer 0 Win Type - Total 39 Types 14/4/11/2/0/0/5/2/1/0 Lore% 95 Gallery% 87 Achievement% 84 Wizard Run 0 Options --------- Layout 0 ASCII 0 Keyboard 0 Movement Numpad Keybinds 0 Fullscreen 1 Font 18/Smallcaps Map View 76x50 Zoom Use 0% Tactical HUD 1 Map Filters NONE Filters NONE Steam 1 RUN: e7e72f3b-6afd-45a7-a2ed-7a8166d4273a